Workbook

Sheet Лист1
M1: Додаток 2
M2: до рішення міської ради
M3: 16.06.2022 №1339
A4: Перелік завдань і заходів Програми розвитку та утримання житлово-комунального господарства міста на період 2017–2022 років
A7: № п/п | B7: Назва напряму діяльності (пріори-тетні завдання) | C7: Перелік заходів програми | D7: Строк, роки | E7: Виконавці | F7: Джерела фінансу-вання | G7: Орієнтовні обсяги потреби в фінансуванні (вартість), тис. грн, у тому числі: | N7: Очікуваний результат
G9: 2017 рік | H9: 2018 рік | I9: 2019 рік | J9: 2020 рік | K9: 2021 рік | L9: 2022 рік | M9: Усього
A11: 1 | B11: 2 | C11: 3 | D11: 4 | E11: 5 | F11: 6 | G11: 7 | H11: 8 | I11: 9 | J11: 10 | K11: 11 | L11: 12 | M11: 13 | N11: 14
A12: 1 | B12: Утри-мання, ремонт, рекон-струкція жит-лового фонду | C12: 1.1. Капіталь-ний ремонт ліфтів | D12: 2017-2022 | E12: Департа-мент роз-витку інф-раструк-тури міста виконкому Криворізь-кої міської ради | F12: Бюджет Криво-різької міської територіальної громади | G12: =20000+8000+10000 -> 38000 | H12: 74700 | I12: 100000 | J12: 200000 | K12: 240000 | L12: 290000 | M12: =G12+H12+I12+J12+K12+L12 -> 942700 | N12: Гарантування умов безпеч-ного та комфо-ртного про-живання насе-лення. Надання об'єднанням співвласників багатоквартир-ного будинку передбаченої чинним зако-нодавством Ук-раїни технічної та/ або іншої документації на житлові бу-динки. Безпечне користування ліфтами меш-канцями бага-токвартирних будинків, їх
C13: 1.2. Експертне обстеження ліфтів | D13: 2017-2022 | F13: =F12 -> Бюджет Криво-різької міської територіальної громади | G13: 100 | H13: 120 | I13: 150 | J13: 100 | K13: 120 | L13: 150 | M13: =G13+H13+I13+J13+K13+L13 -> 740
C14: 1.3. Капіталь-ний, поточний ремонт та реконструкція житлового фонду | D14: 2017-2022 | F14: =F12 -> Бюджет Криво-різької міської територіальної громади | G14: 50000 | H14: =55000-1700 -> 53300 | I14: 60000 | J14: 20000 | K14: 45000 | L14: 80000 | M14: 308300
D15: 2017-2022 | F15: Власні надхо-дження | G15: 200 | H15: 200 | I15: 200 | J15: 50 | K15: 40 | L15: 30 | M15: 720
C16: 1.4. Охорона об'єктів житлового фонду | D16: 2017-2022 | F16: =F14 -> Бюджет Криво-різької міської територіальної громади | G16: 780 | H16: 1000 | I16: 1500 | J16: 1700 | K16: 2200 | L16: 2100 | M16: 9280
C17: 1.5. Заміна адресних вивісок | D17: 2017-2022 | F17: =F16 -> Бюджет Криво-різької міської територіальної громади | G17: 1500 | H17: 0 | I17: 0 | J17: 600 | K17: 600 | L17: 600 | M17: 3300
G18: Продовження додатка 2
A19: 1 | B19: 2 | C19: 3 | D19: 4 | E19: 5 | F19: 6 | G19: 7 | H19: 8 | I19: 9 | J19: 10 | K19: 11 | L19: 12 | M19: 13 | N19: 14
C20: 1.6. Заходи з виконання доручень виборців депутатами Дніпро-петровської обласної ради | D20: 2017-2022 | F20: Субвенція з об-ласного бюдже-ту бюджетам міст, районів та об’єднанням територіальних громад на вико-нання дору-чень виборців депутатами обласної ради | G20: 2000 | H20: 2000 | I20: 3290 | J20: * | K20: * | L20: * | M20: =G20+H20+I20 -> 7290 | N20: належна технічна експлуатація та безперебійна ро-бота. Продовження терміну експлуатації ліфтів. Заміна табличок з назвами топонімів на будинках на нові
F22: =F27 -> Бюджет Криво-різької міської територіальної громади | G22: 2000 | H22: 2000 | I22: 2000 | J22: 0 | K22: 0 | L22: 0 | M22: =G22+H22+I22+J22+K22+L22 -> 6000
C23: 1.7. Фінансу-вання пере-можців обласного конкурсу мікропроєктів з енергоефек-тивності та енергозбере-ження серед органів самоорганізації населення й ОСББ | D23: 2017-2022 | F23: Субвенція з об-ласного бюдже-ту до місцевих бюджетів на фінансування переможців обласного конкурсу мік-ропроєктів з енергоефек-тивності та енерго-збереження серед органів самоорга-нізації населення та ОСББ | G23: 50 | H23: 200 | I23: 499.17 | J23: * | K23: * | L23: * | M23: =G23+H23+I23 -> 749.17 | N23: Підвищення рівня надання населенню житлово-кому-нальних послуг відповідно до вимог національних стандартів, гармонізованих з міжнародними або регіональними
H24: 0 | I24: 0
H25: 0 | I25: 0
C26: 1.8. Послуги з приєднання електроуста-новок до електричних мереж | D26: 2017-2022 | F26: =F16 -> Бюджет Криво-різької міської територіальної громади | G26: 120 | H26: 0 | I26: 0 | J26: 0 | K26: 0 | L26: 0 | M26: =G26+H26+I26+J26+K26+L26 -> 120
C27: 1.9. Створення належних умов для проживан-ня внутрішньо-переміщених осіб у гурто-житках міста | D27: 2021 | F27: =F26 -> Бюджет Криво-різької міської територіальної громади | G27: 0 | H27: 0 | I27: 0 | J27: 0 | K27: 272.15 | L27: 0 | M27: =G27+H27+I27+J27+K27+L27 -> 272.15
A28: Усього | F28: =F27 -> Бюджет Криво-різької міської територіальної громади | G28: =G12+G13+G14+G16+G17+G22+G26+G27 -> 92500 | H28: 131120 | I28: 163650 | J28: 222400 | K28: 288192.15 | L28: 372850 | M28: 1270712.15
F29: Власні надхо-дження | G29: =G15 -> 200 | H29: 200 | I29: 200 | J29: 50 | K29: 40 | L29: 30 | M29: 720
F30: Субвенція з об-ласного бюдже-ту бюджетам міст, районів та об’єднанням територіальних громад на вико-нання дору-чень виборців депутатами обласної ради | G30: =G20 -> 2000 | H30: 2000 | I30: 3290 | J30: * | K30: * | L30: * | M30: 7290
F31: Субвенція з обласного бюджету до місцевих бюджетів на фінансування переможців обласного конкурсу мікропроєктів з енергоефек- | G31: =G23 -> 50 | H31: =H23 -> 200 | I31: =I23 -> 499.17 | J31: * | K31: * | L31: * | M31: =G31+H31+I31 -> 749.17
F33: тивності та енерго-збереження серед органів самоорганізації населення та ОСББ
A34: 2 | B34: Комуналь-не майно | C34: 2.1. Оформ-лення висно-вку спеціалі-зованої органі-зації про мож-ливість (немо-жливітіь) пода-льшої експлуа-тації основних засобів, інших необоротних матеріальних активів, проведення експертиз | D34: 2017-2022 | E34: Департа-мент роз-витку інф-раструктури міста виконкому Криворізь-кої міської ради | F34: =F27 -> Бюджет Криво-різької міської територіальної громади | G34: 15 | H34: 15 | I34: 15 | J34: 20 | K34: 74 | L34: 200 | M34: =G34+H34+I34+J34+K34+L34 -> 339
C36: 2.2. Інвентари-зація, технічна інвентаризація, оцінка майна, об’єктів (елементів) благоустрою з виготовленням технічного паспорта | D36: 2017-2022 | F36: =F34 -> Бюджет Криво-різької міської територіальної громади | G36: 725 | H36: 725 | I36: 725 | J36: =400+11.66 -> 411.66 | K36: 400 | L36: 650 | M36: 3636.66
C37: 2.3. Знесення (розбирання) об'єктів нерухомого майна | D37: 2017-2022 | F37: =F36 -> Бюджет Криво-різької міської територіальної громади | G37: 1000 | H37: 750 | I37: 500 | J37: 2000 | K37: 4000 | L37: 3000 | M37: 11250
C39: 2.4. Придбан-ня в комуна-льну власність житла для надання в тимчасове користування внутрішньо переміщеним особам та послуги з оформлення відповідних документів | D39: 2017-2022 | F39: Субвенція з де-ржавного бюд-жету місцевим бюджетам на здійснення за-ходів щодо під-тримки терито-рій, що зазнали негативного впливу внаслі-док збройного конфлікту на сході України | G39: 0 | H39: 2000 | I39: 0 | J39: 0 | K39: 0 | L39: 0 | M39: 2000
D40: 2018 | F40: =F36 -> Бюджет Криво-різької міської територіальної громади | G40: 0 | H40: =2140 -> 2140 | I40: 0 | J40: 0 | K40: 0 | L40: 0 | M40: 2140
C41: 2.5. Сплата земельного податку | D41: 2017-2022 | F41: Власні надхо-дження | G41: 500 | H41: 600 | I41: 700 | J41: 700 | K41: 2000 | L41: 250 | M41: 4750
F42: =F40 -> Бюджет Криво-різької міської територіальної громади | G42: =547.35+94.47 -> 641.82 | H42: 0 | I42: 0 | J42: 0 | K42: 0 | L42: 0 | M42: 641.82
C43: 2.6. Витрати, пов'язані із судовими процесами, оголошеннями за судовими справами, юридичними та поштовими послугами | D43: 2017-2022 | F43: =F42 -> Бюджет Криво-різької міської територіальної громади | G43: 40 | H43: 40 | I43: 40 | J43: 20 | K43: =50+40 -> 90 | L43: 700 | M43: 930
C44: 2.7. Висвітлен-ня діяльності департаменту розвитку інфра-структури міс-та виконкому | D44: 2017-2022 | F44: Бюджет Криво-різької міської територіальної громади | G44: 190 | H44: 190 | I44: 190 | J44: 190 | K44: 199 | L44: 190 | M44: 1149
C45: Криворізької міської ради в засобах масо-вої інформації
C46: 2.8. Реєстрація та перереєстра-ція автотранс-порту (узяття на облік та зняття з нього) | D46: 2017-2022 | F46: =F44 -> Бюджет Криво-різької міської територіальної громади | G46: 10 | H46: 10 | I46: 10 | J46: 11 | K46: 50 | L46: 25 | M46: =G46+H46+I46+J46+K46+L46 -> 116
C47: 2.9. Послуги з розробки про-ектів землеуст-рою щодо від-ведення земель-них ділянок у постійне корис-тування під об´єкти нерухомості | D47: 2017-2022 | F47: Бюджет Криво-різької міської територіальної громади | G47: 0 | H47: 0 | I47: 150 | J47: 150 | K47: 100 | L47: 100 | M47: 500
C48: 2.10. Прид-бання техніки та обладнання, предметів довгостроко-вого користу-вання | D48: 2017-2022 | F48: Бюджет Криво-різької міської територіальної громади | G48: 0 | H48: 0 | I48: 0 | J48: 16000.8 | K48: 0 | L48: 0 | M48: =J48 -> 16000.8
A49: Усього | F49: Бюджет Криво-різької міської територіальної громади | G49: =G47+G46+G44+G43+G37+G36+G34+G42+G40+G39 -> 2621.82 | H49: =H47+H46+H44+H43+H37+H36+H34+H42+H40+H39 -> 5870 | I49: =I47+I46+I44+I43+I37+I36+I34+I42+I40+I39 -> 1630 | J49: =J47+J46+J44+J43+J37+J36+J34+J42+J40+J39+J48 -> 18803.46 | K49: =K47+K46+K44+K43+K37+K36+K34+K42+K40+K39 -> 4913 | L49: =L47+L46+L44+L43+L37+L36+L34+L42+L40+L39 -> 4865 | M49: =M47+M46+M44+M43+M37+M36+M34+M42+M40+M39+M48 -> 38703.28
F50: Власні надхо-дження | G50: =G41 -> 500 | H50: 600 | I50: 700 | J50: 700 | K50: 2000 | L50: 250 | M50: =G50+H50+I50+J50+K50+L50 -> 4750
F51: Субвенція з де-ржавного бю-джету місцевим бюджетам на здійснення за-
F52: ходів щодо підтримки територій, що зазнали негативного впливу внаслідок збройного конфлікту на сході України впливу внаслідок збройного конфлікту на сході Укрваїни | G52: =G39 -> 0 | H52: 2000 | I52: 0 | J52: 0 | K52: 0 | L52: 0 | M52: =G52+H52+I52+J52+K52+L52 -> 2000
A53: 3 | B53: Санітарна очистка міста | C53: 3.1. Оформлен-ня права корис-тування земе-льними ділян-ками під полі-гонами звалищ сміття міста | D53: 2017-2020 | E53: Департа-мент роз-витку інф-раструктури міста виконкому Криворізь-кої міської ради | F53: =F49 -> Бюджет Криво-різької міської територіальної громади | G53: 190 | H53: 0 | I53: 0 | J53: 1000 | K53: 1000 | L53: 0 | M53: =G53+H53+I53+J53+K53+L53 -> 2190 | N53: Покращення еко-логічної ситуації в місті (санітарне очищення)
C54: 3.2. Розробка проєктно-кошторисної документації на рекультивацію полігону для складування твердих побутових відходів | D54: 2022 | F54: Бюджет Криво-різької міської територіальної громади | G54: 0 | H54: 0 | I54: 0 | J54: 0 | K54: 0 | L54: 1000 | M54: 1000
C55: 3.3. Ліквідація стихійних звалищ | D55: 2017-2022 | F55: =F53 -> Бюджет Криво-різької міської територіальної громади | G55: 190 | H55: 300 | I55: 1261 | J55: 1000 | K55: 1500 | L55: 2000 | M55: 6251
C56: 3.4.Придбання та ремонт кон-тейнерних сис-тем для розмі-щення контей-нерів для збору твердих побуто-вих відходів | D56: 2017-2022 | F56: =F55 -> Бюджет Криво-різької міської територіальної громади | G56: 0 | H56: 2500 | I56: 5000 | J56: 15000 | K56: 15000 | L56: 15000 | M56: 52500
C57: 3.5. Утриман-ня, поточний, капітальний ремонт контейнерних майданчиків | D57: 2017-2022 | F57: =F56 -> Бюджет Криво-різької міської територіальної громади | G57: 0 | H57: 0 | I57: 0 | J57: 15000 | K57: 15000 | L57: 20000 | M57: 50000
C58: 3.6. Коригу-вання схеми санітарної очистки міста | D58: 2021 | F58: Бюджет Криво-різької міської територіальної громади | G58: 0 | H58: 0 | I58: 0 | J58: 0 | K58: 300 | L58: 320 | M58: 620
A59: Усього | F59: Бюджет Криво-різької міської територіальної громади | G59: =G58+G57+G56+G55+G54+G53 -> 380 | H59: 2800 | I59: 6261 | J59: 32000 | K59: 32800 | L59: 38320 | M59: 112561
A60: 4 | B60: Підтрим-ка кому-нальних підпри-ємств - надавачів послуг з теплопос-тачання, водопостачання та водовідве-дення | C60: 4.1. Фінансова підтримка | D60: 2017-2022 | E60: Департа-мент роз-витку інф-раструктури міста виконкому Криворізь-кої міської ради - голо-вний роз-порядник коштів, Ко-мунальне підприємс-тво тепло-вих мереж «Криворіж-тепломе-режа» - одержувач | F60: Бюджет Криво-різької міської територіальної громади | G60: 12000 | H60: 80000 | I60: =40000+4166.29+20000 -> 64166.29 | J60: =25000+12000 -> 37000 | K60: 55000 | L60: 0 | M60: 248166.29 | N60: Економія теплової та електричної енергії, природного газу, покращення якості виконання робіт на системі тепло- постачання. Покращення якості надання послуг з водопостачання та водо- відведення. Зни-ження травма-тизму населен-
C61: 4.2 Погашення заборгованос-ті за теплову енергію | D61: 2022 | F61: Бюджет Криво-різької міської територіальної громади | G61: 0 | H61: 0 | I61: 0 | J61: 0 | K61: 0 | L61: 75000 | M61: =G61+H61+I61+J61+K61+L61 -> 75000
C62: 4.3. Придбан-ня теплоізо-ляційних матеріалів | D62: 2017-2022 | F62: =F60 -> Бюджет Криво-різької міської територіальної громади | G62: 5000 | H62: 5000 | I62: 5000 | J62: 0 | K62: 3000 | L62: 3000 | M62: 21000
C63: 4.4. Придбан-ня блочних автоматизова-них пальників з частотними перетворюва-чами | D63: 2017-2022 | F63: Бюджет Криво-різької міської територіальної громади | G63: 5000 | H63: 6000 | I63: 5000 | J63: 0 | K63: 0 | L63: 0 | M63: 16000
C65: 4.5. Реконст-рукція схеми теплопоста-чання | D65: 2017-2022 | E65: коштів | F65: =F63 -> Бюджет Криво-різької міської територіальної громади | G65: 1500 | H65: 0 | I65: 0 | J65: 0 | K65: 0 | L65: 0 | M65: 1500 | N65: ня, запобігання нещасним випадкам. Економія енергоресурсів
C66: 4.6. Демонтаж димової труби котельні «Прорізна, 87» | D66: 2017-2022 | F66: Бюджет Криво-різької міської територіальної громади | G66: 1500 | H66: 0 | I66: 0 | J66: 0 | K66: 0 | L66: 0 | M66: 1500
C67: 4.7. Поповнен-ня статутного капіталу на придбання спецтехніки, обладнання та предметів довгостроко-вого користування | D67: 2017-2022 | F67: Бюджет Криво-різької міської територіальної громади | G67: =1420+2450 -> 3870 | H67: 0 | I67: 0 | J67: 0 | K67: 2500 | L67: 5000 | M67: 11370
C68: 4.8. Оснащен-ня вузлами комерційного | D68: 2017-2022 | F68: Бюджет Криво-різької міської територіальної громади | G68: 0 | H68: 18235 | I68: 12752.19 | J68: 0 | K68: 0 | L68: 0 | M68: 30987.19
C69: обліку те-плової енергії житлових будинків, приєднаних до зовнішніх інженерних мереж
C70: 4.9. Поповнен-ня статутного капіталу на ви-конання робіт з будівництва, ре-конструкції, ка-пітального ре-монту коте-лень та тепло-вих мереж | D70: 2017-2022 | F70: =F66 -> Бюджет Криво-різької міської територіальної громади | G70: 0 | H70: 0 | I70: 10000 | J70: 0 | K70: 35000 | L70: 18000 | M70: 63000
C71: 4.10. Придбан-ня матеріалів, обладнання (устаткування) для виконання робіт з буді-вництва, реко-нструкції, капі-тального ремо-нту котелень та теплових мереж | D71: 2020 | F71: =F67 -> Бюджет Криво-різької міської територіальної громади | G71: 0 | H71: 0 | I71: 0 | J71: 0 | K71: 0 | L71: 0 | M71: 0
C72: 4.11. Заходи щодо врегулю-вання проблем-них питань в опалювальний період 2021/2022 років, пов'язані з різким зростанням цін на енергоресурси | D72: 2021-2022 | F72: =F71 -> Бюджет Криво-різької міської територіальної громади | G72: 0 | H72: 0 | I72: 0 | J72: 0 | K72: 20500 | L72: 27000 | M72: 47500
C73: 4.12. Оплата праці та енергоносіїв (електроенегія, вода тощо) | D73: 2017-2022 | E73: Департа-мент роз-витку інф-раструктури міста виконкому Криворізь-кої міської ради - голо-вний роз-порядник коштів, Комунальне | F73: =F71 -> Бюджет Криво-різької міської територіальної громади | G73: 30000 | H73: 30000 | I73: 30000 | J73: 0 | K73: 0 | L73: 90000 | M73: 180000 | N73: Покращення якості надання послуг з водо-постачання та водовідведення. Зниження тра-вматизму насе-лення, запобі-гання нещасним випадкам. Еко-номія ресурсів
C74: 4.13. Придбан-ня кришок люків | D74: 2017-2022 | F74: =F71 -> Бюджет Криво-різької міської територіальної громади | G74: 2000 | H74: 2000 | I74: 2000 | J74: 1000 | K74: =J74*1.05 -> 1050 | L74: =K74*1.05 -> 1102.5 | M74: 9152.5
C75: 4.14. Послуги щодо фінан-сового лізингу на придбання спецтехніки | D75: 2017-2022 | F75: =F74 -> Бюджет Криво-різької міської територіальної громади | G75: 14658.87 | H75: 37280.59 | I75: 20963.5 | J75: 0 | K75: 0 | L75: 0 | M75: 72902.96
C76: 4.15. Капіталь-ний ремонт, будівництво, реконструкція мереж водо-постачання та водовідве-дення | D76: 2017-2022 | E76: підприємс-тво «Кри-вбасводо-канал» - одержувач коштів | F76: =F75 -> Бюджет Криво-різької міської територіальної громади | G76: 62408.8 | H76: 0 | I76: 6476 | J76: =7026.77+1000+1000 -> 9026.77 | K76: 15000 | L76: 20000 | M76: =G76+H76+I76+J76+K76+L76 -> 112911.57
C77: 4.16. Прид-бання мате-ріалів, облад-нання (уста-ткування) для виконання ка-пітальних ре-монтів, будів-ництва, реконс-трукції мереж і споруд водопостачан-ня та водо-відведення | D77: 2017-2022 | F77: =F76 -> Бюджет Криво-різької міської територіальної громади | G77: 10520 | H77: 13000 | I77: 17000 | J77: =3000+267 -> 3267 | K77: =J77*1.05 -> 3430.35 | L77: 5000 | M77: 52217.35
C78: 4.17. Попов-нення статут-ного капіталу на придбання спецтехніки, обладнання та предметів до-вгострокового користування | D78: 2017-2022 | F78: Бюджет Криво-різької міської територіальної громади | G78: 12398.84 | H78: 0 | I78: 0 | J78: 0 | K78: 0 | L78: 10000 | M78: 22398.84
C79: 4.18. Послуги з обслуговуван-ня підвищува-льних насосів холодної води | D79: 2017-2022 | F79: Бюджет Криво-різької міської територіальної громади | G79: 2340 | H79: 0 | I79: 0 | J79: 0 | K79: 0 | L79: 0 | M79: =G79+H79+I79+J79+K79+L79 -> 2340
C80: 4.19. Придбан-ня пожежних гідрантів | D80: 2017-2022 | F80: =F79 -> Бюджет Криво-різької міської територіальної громади | G80: 0 | H80: 0 | I80: 0 | J80: 1000 | K80: =J80*1.05 -> 1050 | L80: =K80*1.05 -> 1102.5 | M80: 3152.5
A81: Усього | F81: =F80 -> Бюджет Криво-різької міської територіальної громади | G81: =G60+G62+G63+G65+G66+G67+G68+G70+G71+G72+G73+G74+G75+G76+G77+G78+G79+G80+G61 -> 163196.51 | H81: =H60+H62+H63+H65+H66+H67+H68+H70+H71+H72+H73+H74+H75+H76+H77+H78+H79+H80+H61 -> 191515.59 | I81: 173357.98 | J81: 51293.77 | K81: 136530.35 | L81: 255205 | M81: =M60+M62+M63+M65+M66+M67+M68+M70+M71+M72+M73+M74+M75+M76+M77+M78+M79+M80+M61 -> 971099.2
A82: 5 | B82: Заходи, пов’язані з економіч-ною дія-льністю Комуналь-ного зак-ладу «Дитячий оздоровчий табір «Перлина Кри-воріжжя» Криворізь-кої міської ради | C82: 5.1. Поповнен-ня статутного капіталу на придбання обладнання і предметів довгостроко-вого користування | D82: 2017 | E82: Департа-мент роз-витку інф-раструктури міста виконкому Криворізь-кої міської ради - голо-вний роз-порядник коштів, Ко-мунальний заклад «Ди- тячий оздо-ровчий та-бір «Пер-лина Кри-воріжжя» Криворізь-кої міської ради - одер-жувач коштів | F82: =F81 -> Бюджет Криво-різької міської територіальної громади | G82: =300-125.1 -> 174.9 | H82: 0 | I82: 0 | J82: 0 | K82: 0 | L82: 0 | M82: =G82+H82+I82+J82+K82+L82 -> 174.9 | N82: Забезпечення умов для оздоровлення дітей та стабільної роботи Комунального закладу «Дитячий оздоровчий табір «Перлина Криворіжжя» Криворізької міської ради
C83: 5.2. Інші заходи, пов'язані з економічною діяльністю закладу | D83: 2017-2018 | F83: =F82 -> Бюджет Криво-різької міської територіальної громади | G83: =500-156.55 -> 343.45 | H83: =500-343.45+125.1 -> 281.65 | I83: 0 | J83: 0 | K83: 0 | L83: 0 | M83: =G83+H83+I83+J83+K83+L83 -> 625.1
A86: Усього | F86: =F83 -> Бюджет Криво-різької міської територіальної громади | G86: =G82+G83 -> 518.35 | H86: =H82+H83 -> 281.65 | I86: =I82+I83 -> 0 | J86: =J82+J83 -> 0 | K86: 0 | L86: =L82+L83 -> 0 | M86: =G86+H86+I86+J86+K86+L86 -> 800
A87: 6 | B87: Заходи, пов’язані з економіч-ною дія-льністю Комуналь-ного під-приємства «Кривбас- | C87: 6.1. Заходи, пов´язані з за-лученням кре-дитних ресур-сів на впрова-дження проєк-тів з енерго-ефективності | D87: 2017-2022 | E87: Департа-мент роз-витку інф-раструктури міста виконкому Криворізь-кої міської ради - | F87: =F86 -> Бюджет Криво-різької міської територіальної громади | G87: 1000 | H87: 1000 | I87: 1000 | J87: 0 | K87: 0 | L87: 0 | M87: =G87+H87+I87+J87+K87+L87 -> 3000 | N87: Реалізація програм пріоритетних інвестицій для підвищення енергоефектив-ності грома-дських будівель
B88: теплоенер-го» Криворізь-кої міської ради | C88: 6.2. Поповнен-ня статутного капіталу на при-дбання облад-нання і предме-тів довгостро-кового користування | D88: 2017-2022 | E88: головний розпоря-дник коштів, Комунальне підприєм-ство «Кри-вбастеп-лоенерго» Криворізь-кої міської ради - одержувач коштів | F88: Бюджет Криво-різької міської територіальної громади | G88: 100 | H88: 0 | I88: 100 | J88: 69 | K88: 0 | L88: 0 | M88: =G88+H88+I88+J88+K88+L88 -> 269
C89: 6.3 Інші заходи, пов'язані з економічною діяльністю підприємства | D89: 2017-2022 | F89: Бюджет Криво-різької міської територіальної громади | G89: 0 | H89: 0 | I89: 3000 | J89: =414 -> 414 | K89: 0 | L89: 0 | M89: =G89+H89+I89+J89+K89+L89 -> 3414
C90: 6.4. Фінансова підтримка | D90: 2017-2022 | F90: Бюджет Криво-різької міської територіальної громади | G90: 0 | H90: 0 | I90: 0 | J90: 1000 | K90: =1980 -> 1980 | L90: 0 | M90: =G90+H90+I90+J90+K90+L90 -> 2980
A91: Усього | F91: Бюджет Криво-різької міської територіальної громади | G91: =G87+G88 -> 1100 | H91: =H87+H88 -> 1000 | I91: =I87+I88+I89 -> 4100 | J91: =J87+J88+J89+J90 -> 1483 | K91: =K90 -> 1980 | L91: =L87+L88+L89 -> 0 | M91: =M87+M88+M89+M90 -> 9663
A92: 7 | B92: Заходи, пов’язані з економіч-ною дія-льністю Комуналь-ного під-приємства «Сансер-віс» Криворізь-кої міської ради | C92: Заходи, пов'язані з реалізацією проєкту «Нове будівництво комплексу з перероблення, знешкодження та складування твердих побутових відходів у Металургійно-му районі міста Кривого Рогу Дніпропетров-ської області» | D92: 2020-2022 | E92: Департа-мент роз-витку інф-раструктури міста виконкому Криворізь-кої міської ради, Ко-мунальне підприєм-ство «Сан-сервіс»» Криворізь-кої міської ради - одержувач коштів | F92: Бюджет Криво-різької міської територіальної громади | G92: 0 | H92: 0 | I92: 0 | J92: 300 | K92: 600 | L92: 9587.73 | M92: =G92+H92+I92+J92+K92+L92 -> 10487.73
A94: Усього за Програмою, у тому числі | F94: Усього | G94: =G95+G96+G97+G100+G98 -> 263016.68 | H94: =H95+H96+H97+H100+H98 -> 335387.24 | I94: =I95+I96+I97+I100+I98 -> 353188.98 | J94: =J95+J96++J98 -> 327030.23 | K94: =K95+K96+K98 -> 467055.5 | L94: =L95+L96+L98 -> 681107.73 | M94: =M95+M96+M97+M98+M100 -> 2426786.36
F95: =F92 -> Бюджет Криво-різької міської територіальної громади | G95: =G28+G49+G59+G81+G86+G91+G92 -> 260316.68 | H95: 332587.24 | I95: 348998.98 | J95: 326280.23 | K95: 465015.5 | L95: 680827.73 | M95: 2414026.36
F96: Власні надхо-дження | G96: =G29+G50 -> 700 | H96: 800 | I96: 900 | J96: 750 | K96: 2040 | L96: 280 | M96: =SUM(G96:L96) -> 5470
F97: Субвенція з об-ласного бюдже-ту бюджетам міст, районів та об’єднанням територіальних громад на вико-нання дору-чень виборців депутатами обласної ради | G97: =G30 -> 2000 | H97: 2000 | I97: 3290 | J97: * | K97: * | L97: * | M97: 7290
F98: Субвенція з де-ржавного бю-джету місцевим бюджетам на здійснення за-ходів щодо під-тримки терито-рій, що зазнали негативного впливу внаслі-док збройного конфлікту на сході України | G98: =G51 -> 0 | H98: =H51 -> 0 | I98: =I51 -> 0 | J98: 0 | K98: 0 | L98: 0 | M98: =M51 -> 0
F100: Субвенція з обласного бюджету до місцевих бюджетів на фінансування | G100: =G33 -> 0 | H100: 0 | I100: 0 | J100: 0 | K100: 0 | L100: 0 | M100: 0
F101: переможців обласного конкурсу мік-ропроєктів з енергоефек-тивності та енерго-збереження серед органів самоорга-нізації населення та ОСББ
A103: * Примітка: Забезпечення фінансового ресурсу в межах обсягів, передбачених в обласному бюджеті на відповідний бюджетний рік.
A104: Керуюча справами виконкому | G104: Олена ШОВГЕЛЯ
